[Event "Titled Tuesday Blitz August 22 Early 2023"]
[White "Coelho, Ramyres Santana"]
[Black "Gogolev, Artem"]
[WhiteFideId "2120690"]
[BlackFideId "4116615"]
[WhiteElo "2331"]
[BlackElo "2486"]
[Result "1-0"]
[Round "10"]
[TimeControl "180+1"]
[Date "2023.08.22"]
[WhiteClock "0:00:33"]
[BlackClock "0:00:04"]
[Board "116"]

1. e4 {[%clk 0:03:00]}  c6 {[%clk 0:02:36]} 2. d4 {[%clk 0:03:00]}  d5 {[%clk 0:02:36]} 3. Nc3 {[%clk 0:03:01]}  dxe4 {[%clk 0:02:36]} 4. Nxe4 {[%clk 0:03:01]}  Bf5 {[%clk 0:02:33]} 5. Ng3 {[%clk 0:03:01]}  Bg6 {[%clk 0:02:33]} 6. Nf3 {[%clk 0:03:02]}  Nd7 {[%clk 0:02:32]} 7. h4 {[%clk 0:03:02]}  h6 {[%clk 0:02:32]} 8. h5 {[%clk 0:03:02]}  Bh7 {[%clk 0:02:32]} 9. Bd3 {[%clk 0:03:03]}  Bxd3 {[%clk 0:02:32]} 10. Qxd3 {[%clk 0:03:04]}  Ngf6 {[%clk 0:02:33]} 11. Bd2 {[%clk 0:03:05]}  e6 {[%clk 0:02:31]} 12. O-O-O {[%clk 0:03:05]}  Be7 {[%clk 0:02:19]} 13. c4 {[%clk 0:03:05]}  O-O {[%clk 0:02:05]} 14. Kb1 {[%clk 0:03:04]}  b5 {[%clk 0:01:56]} 15. cxb5 {[%clk 0:02:50]}  cxb5 {[%clk 0:01:52]} 16. Qe2 {[%clk 0:02:49]}  Nb6 {[%clk 0:01:34]} 17. Qxb5 {[%clk 0:02:42]}  a6 {[%clk 0:00:53]} 18. Qb3 {[%clk 0:02:35]}  Rb8 {[%clk 0:00:51]} 19. Bf4 {[%clk 0:02:23]}  Bd6 {[%clk 0:00:48]} 20. Bxd6 {[%clk 0:02:09]}  Qxd6 {[%clk 0:00:48]} 21. Ne5 {[%clk 0:02:06]}  a5 {[%clk 0:00:43]} 22. Qd3 {[%clk 0:01:48]}  Nfd5 {[%clk 0:00:38]} 23. Ne4 {[%clk 0:01:43]}  Qc7 {[%clk 0:00:20]} 24. Qg3 {[%clk 0:01:19]}  Na4 {[%clk 0:00:17]} 25. Rd2 {[%clk 0:01:10]}  Nac3+ {[%clk 0:00:15]} 26. Nxc3 {[%clk 0:01:08]}  Nxc3+ {[%clk 0:00:16]} 27. Ka1 {[%clk 0:01:05]}  Ne4 {[%clk 0:00:16]} 28. Qd3 {[%clk 0:00:50]}  Nxd2 {[%clk 0:00:16]} 29. Qxd2 {[%clk 0:00:51]}  Rfd8 {[%clk 0:00:16]} 30. Rd1 {[%clk 0:00:50]}  Rb4 {[%clk 0:00:14]} 31. Qc3 {[%clk 0:00:44]}  Qxe5 {[%clk 0:00:08]} 32. Re1 {[%clk 0:00:40]}  Qxd4 {[%clk 0:00:08]} 33. Qa3 {[%clk 0:00:35]}  Qd1+ {[%clk 0:00:07]} 34. Rxd1 {[%clk 0:00:35]}  Rd2 {[%clk 0:00:04]} 35. Rxd2 {[%clk 0:00:33]} 1-0


[Site "https://www.chess.com"]

[Event "Titled Tuesday Blitz August 22 Early 2023"]
[White "slidingknight2775"]
[Black "Zampronha, Wladimir Camilo"]
[BlackFideId "2103087"]
[WhiteElo "2484"]
[BlackElo "2296"]
[Result "1/2-1/2"]
[Round "10"]
[TimeControl "180+1"]
[Date "2023.08.22"]
[WhiteClock "0:00:05"]
[BlackClock "0:00:18"]
[Board "118"]

1. d4 {[%clk 0:03:00]}  Nf6 {[%clk 0:02:59]} 2. c4 {[%clk 0:02:59]}  e6 {[%clk 0:02:59]} 3. Nc3 {[%clk 0:02:59]}  Bb4 {[%clk 0:02:59]} 4. e3 {[%clk 0:03:00]}  O-O {[%clk 0:02:58]} 5. Ne2 {[%clk 0:02:59]}  c5 {[%clk 0:02:56]} 6. a3 {[%clk 0:02:59]}  cxd4 {[%clk 0:02:55]} 7. axb4 {[%clk 0:02:54]}  dxc3 {[%clk 0:02:55]} 8. Nxc3 {[%clk 0:02:54]}  d5 {[%clk 0:02:53]} 9. b5 {[%clk 0:02:50]}  dxc4 {[%clk 0:02:52]} 10. Bxc4 {[%clk 0:02:46]}  Qc7 {[%clk 0:02:51]} 11. Qe2 {[%clk 0:02:40]}  Nbd7 {[%clk 0:02:51]} 12. O-O {[%clk 0:02:39]}  Nb6 {[%clk 0:02:49]} 13. Bd3 {[%clk 0:02:30]}  e5 {[%clk 0:02:48]} 14. Bd2 {[%clk 0:02:07]}  Re8 {[%clk 0:02:48]} 15. Rfc1 {[%clk 0:02:01]}  Qe7 {[%clk 0:02:34]} 16. f3 {[%clk 0:01:46]}  Be6 {[%clk 0:02:23]} 17. Be1 {[%clk 0:01:43]}  Nfd7 {[%clk 0:02:17]} 18. Na4 {[%clk 0:00:56]}  Nxa4 {[%clk 0:02:12]} 19. Rxa4 {[%clk 0:00:57]}  Nb6 {[%clk 0:02:08]} 20. Ra3 {[%clk 0:00:36]}  Rec8 {[%clk 0:01:59]} 21. Rca1 {[%clk 0:00:35]}  Nc4 {[%clk 0:01:49]} 22. Rxa7 {[%clk 0:00:32]}  Rxa7 {[%clk 0:01:47]} 23. Rxa7 {[%clk 0:00:33]}  Qc5 {[%clk 0:01:33]} 24. Ra1 {[%clk 0:00:21]}  Qxb5 {[%clk 0:01:27]} 25. Bc3 {[%clk 0:00:15]}  Qc5 {[%clk 0:01:22]} 26. Bxc4 {[%clk 0:00:11]}  Bxc4 {[%clk 0:01:21]} 27. Qf2 {[%clk 0:00:12]}  f6 {[%clk 0:01:18]} 28. e4 {[%clk 0:00:11]}  Qxf2+ {[%clk 0:01:10]} 29. Kxf2 {[%clk 0:00:12]}  Ba6 {[%clk 0:01:09]} 30. h4 {[%clk 0:00:10]}  Kf7 {[%clk 0:01:09]} 31. Ke3 {[%clk 0:00:10]}  Ke6 {[%clk 0:01:09]} 32. g4 {[%clk 0:00:10]}  Rd8 {[%clk 0:01:07]} 33. Kf2 {[%clk 0:00:07]}  Rd3 {[%clk 0:01:06]} 34. Ra3 {[%clk 0:00:05]}  Kd7 {[%clk 0:01:03]} 35. Bb4 {[%clk 0:00:04]}  Rxa3 {[%clk 0:00:59]} 36. Bxa3 {[%clk 0:00:05]}  Ke6 {[%clk 0:00:55]} 37. Ke3 {[%clk 0:00:06]}  g6 {[%clk 0:00:54]} 38. Bf8 {[%clk 0:00:05]}  f5 {[%clk 0:00:53]} 39. Bg7 {[%clk 0:00:06]}  Bb5 {[%clk 0:00:49]} 40. Bf8 {[%clk 0:00:04]}  h5 {[%clk 0:00:43]} 41. exf5+ {[%clk 0:00:03]}  gxf5 {[%clk 0:00:42]} 42. gxh5 {[%clk 0:00:04]}  Be8 {[%clk 0:00:42]} 43. h6 {[%clk 0:00:04]}  Bg6 {[%clk 0:00:42]} 44. Bb4 {[%clk 0:00:03]}  Kd5 {[%clk 0:00:38]} 45. Bc3 {[%clk 0:00:03]}  f4+ {[%clk 0:00:38]} 46. Kf2 {[%clk 0:00:03]}  e4 {[%clk 0:00:37]} 47. fxe4+ {[%clk 0:00:04]}  Kxe4 {[%clk 0:00:37]} 48. Bg7 {[%clk 0:00:03]}  b5 {[%clk 0:00:33]} 49. b4 {[%clk 0:00:04]}  Bh7 {[%clk 0:00:32]} 50. Bf8 {[%clk 0:00:04]}  Bg6 {[%clk 0:00:32]} 51. Bc5 {[%clk 0:00:04]}  Bh7 {[%clk 0:00:32]} 52. Kg2 {[%clk 0:00:03]}  Bf5 {[%clk 0:00:31]} 53. h5 {[%clk 0:00:03]}  Bh7 {[%clk 0:00:28]} 54. Kh3 {[%clk 0:00:03]}  Kf5 {[%clk 0:00:28]} 55. Kg2 {[%clk 0:00:02]}  Kg4 {[%clk 0:00:27]} 56. Bd6 {[%clk 0:00:02]}  Be4+ {[%clk 0:00:24]} 57. Kf2 {[%clk 0:00:02]}  Bh7 {[%clk 0:00:23]} 58. Bc7 {[%clk 0:00:02]}  Be4 {[%clk 0:00:22]} 59. Bb8 {[%clk 0:00:02]}  Bh7 {[%clk 0:00:21]} 60. Bd6 {[%clk 0:00:03]}  Be4 {[%clk 0:00:20]} 61. Bc7 {[%clk 0:00:04]}  Bh7 {[%clk 0:00:20]} 62. Bd6 {[%clk 0:00:04]}  Be4 {[%clk 0:00:19]} 63. Bc7 {[%clk 0:00:05]}  Bh7 {[%clk 0:00:18]} 64. Bd6 {[%clk 0:00:05]} 1/2-1/2


[Site "https://www.chess.com"]

[Event "Titled Tuesday Blitz August 22 Early 2023"]
[White "Miguelitro69"]
[Black "Bazilius, Augustinas"]
[BlackFideId "12832251"]
[WhiteElo "2277"]
[BlackElo "2469"]
[Result "1-0"]
[Round "10"]
[TimeControl "180+1"]
[Date "2023.08.22"]
[WhiteClock "0:01:43"]
[BlackClock "0:00:00"]
[Board "120"]

1. e4 {[%clk 0:02:59]}  c5 {[%clk 0:02:59]} 2. Nf3 {[%clk 0:02:59]}  a6 {[%clk 0:02:58]} 3. g3 {[%clk 0:02:58]}  b5 {[%clk 0:02:56]} 4. Bg2 {[%clk 0:02:58]}  Bb7 {[%clk 0:02:57]} 5. Qe2 {[%clk 0:02:56]}  d6 {[%clk 0:02:50]} 6. O-O {[%clk 0:02:56]}  Nf6 {[%clk 0:02:51]} 7. d3 {[%clk 0:02:49]}  e6 {[%clk 0:02:48]} 8. c3 {[%clk 0:02:49]}  Be7 {[%clk 0:02:46]} 9. Nbd2 {[%clk 0:02:49]}  d5 {[%clk 0:02:27]} 10. e5 {[%clk 0:02:48]}  Nfd7 {[%clk 0:02:27]} 11. d4 {[%clk 0:02:47]}  Nc6 {[%clk 0:02:20]} 12. Re1 {[%clk 0:02:43]}  Qb6 {[%clk 0:02:12]} 13. dxc5 {[%clk 0:02:39]}  Bxc5 {[%clk 0:02:13]} 14. Nb3 {[%clk 0:02:39]}  Be7 {[%clk 0:01:44]} 15. Bf4 {[%clk 0:02:38]}  O-O {[%clk 0:01:18]} 16. h4 {[%clk 0:02:38]}  a5 {[%clk 0:01:13]} 17. Rad1 {[%clk 0:02:36]}  b4 {[%clk 0:01:09]} 18. c4 {[%clk 0:02:33]}  Ba6 {[%clk 0:01:08]} 19. Nbd2 {[%clk 0:02:29]}  Qc7 {[%clk 0:00:40]} 20. b3 {[%clk 0:02:26]}  Nb6 {[%clk 0:00:36]} 21. Rc1 {[%clk 0:02:09]}  dxc4 {[%clk 0:00:29]} 22. bxc4 {[%clk 0:02:02]}  Rad8 {[%clk 0:00:29]} 23. Qe3 {[%clk 0:02:00]}  a4 {[%clk 0:00:20]} 24. Ng5 {[%clk 0:01:54]}  h6 {[%clk 0:00:21]} 25. Nge4 {[%clk 0:01:54]}  Nd4 {[%clk 0:00:15]} 26. Nd6 {[%clk 0:01:51]}  Nf5 {[%clk 0:00:10]} 27. Nxf5 {[%clk 0:01:49]}  exf5 {[%clk 0:00:11]} 28. e6 {[%clk 0:01:44]}  Bf6 {[%clk 0:00:00]} 29. Bxc7 {[%clk 0:01:43]} 1-0


[Site "https://www.chess.com"]

[Event "Titled Tuesday Blitz August 22 Early 2023"]
[White "Ai, Evan"]
[Black "Shuvalov, Evgenij"]
[WhiteFideId "2094770"]
[BlackFideId "4187237"]
[WhiteElo "2271"]
[BlackElo "2465"]
[Result "1/2-1/2"]
[Round "10"]
[TimeControl "180+1"]
[Date "2023.08.22"]
[WhiteClock "0:00:14"]
[BlackClock "0:00:25"]
[Board "121"]

1. e4 {[%clk 0:03:00]}  e6 {[%clk 0:02:59]} 2. d4 {[%clk 0:02:54]}  d5 {[%clk 0:02:59]} 3. Nd2 {[%clk 0:02:52]}  c5 {[%clk 0:02:58]} 4. exd5 {[%clk 0:02:51]}  exd5 {[%clk 0:02:59]} 5. Ngf3 {[%clk 0:02:51]}  Nc6 {[%clk 0:02:59]} 6. Bb5 {[%clk 0:02:51]}  Qe7+ {[%clk 0:02:59]} 7. Qe2 {[%clk 0:02:50]}  Qxe2+ {[%clk 0:02:58]} 8. Kxe2 {[%clk 0:02:51]}  a6 {[%clk 0:02:56]} 9. Bxc6+ {[%clk 0:02:50]}  bxc6 {[%clk 0:02:57]} 10. dxc5 {[%clk 0:02:51]}  Bxc5 {[%clk 0:02:57]} 11. Nb3 {[%clk 0:02:51]}  Bd6 {[%clk 0:02:56]} 12. Be3 {[%clk 0:02:51]}  Ne7 {[%clk 0:02:51]} 13. Bc5 {[%clk 0:02:48]}  Kd7 {[%clk 0:02:51]} 14. Kd2 {[%clk 0:02:45]}  f6 {[%clk 0:02:47]} 15. Rhe1 {[%clk 0:02:45]}  Bxc5 {[%clk 0:02:40]} 16. Nxc5+ {[%clk 0:02:46]}  Kd6 {[%clk 0:02:40]} 17. b4 {[%clk 0:02:39]}  a5 {[%clk 0:02:40]} 18. a3 {[%clk 0:02:32]}  g5 {[%clk 0:02:31]} 19. Nd4 {[%clk 0:02:29]}  Ng6 {[%clk 0:02:24]} 20. g3 {[%clk 0:02:20]}  g4 {[%clk 0:02:21]} 21. Kc3 {[%clk 0:02:15]}  Ne5 {[%clk 0:02:21]} 22. Ndb3 {[%clk 0:02:09]}  axb4+ {[%clk 0:02:06]} 23. axb4 {[%clk 0:02:10]}  Bf5 {[%clk 0:02:04]} 24. Na5 {[%clk 0:02:01]}  h5 {[%clk 0:01:59]} 25. Ra4 {[%clk 0:01:57]}  h4 {[%clk 0:01:55]} 26. Rea1 {[%clk 0:01:56]}  Kc7 {[%clk 0:01:53]} 27. Nab3 {[%clk 0:01:49]}  Rxa4 {[%clk 0:01:51]} 28. Rxa4 {[%clk 0:01:49]}  Nf3 {[%clk 0:01:41]} 29. Ra7+ {[%clk 0:01:48]}  Kb8 {[%clk 0:01:32]} 30. Rb7+ {[%clk 0:01:46]}  Kc8 {[%clk 0:01:32]} 31. Na5 {[%clk 0:01:39]}  Ne5 {[%clk 0:01:32]} 32. Ra7 {[%clk 0:01:30]}  Rh7 {[%clk 0:01:27]} 33. Ra8+ {[%clk 0:01:29]}  Kc7 {[%clk 0:01:26]} 34. Rf8 {[%clk 0:01:22]}  Rh6 {[%clk 0:01:19]} 35. Rg8 {[%clk 0:01:16]}  hxg3 {[%clk 0:01:14]} 36. hxg3 {[%clk 0:01:17]}  Rh7 {[%clk 0:01:13]} 37. Nab3 {[%clk 0:01:12]}  Nf3 {[%clk 0:01:09]} 38. Nd4 {[%clk 0:01:07]}  Nxd4 {[%clk 0:01:08]} 39. Kxd4 {[%clk 0:01:08]}  Bxc2 {[%clk 0:01:06]} 40. Rxg4 {[%clk 0:01:08]}  Re7 {[%clk 0:01:01]} 41. Rg7 {[%clk 0:00:59]}  Rxg7 {[%clk 0:00:57]} 42. Ne6+ {[%clk 0:00:59]}  Kb6 {[%clk 0:00:58]} 43. Nxg7 {[%clk 0:01:00]}  Kb5 {[%clk 0:00:58]} 44. Kc3 {[%clk 0:00:56]}  Bg6 {[%clk 0:00:57]} 45. Ne6 {[%clk 0:00:55]}  Bf7 {[%clk 0:00:51]} 46. Nd8 {[%clk 0:00:47]}  Bg8 {[%clk 0:00:48]} 47. Nb7 {[%clk 0:00:45]}  d4+ {[%clk 0:00:44]} 48. Kxd4 {[%clk 0:00:45]}  Kxb4 {[%clk 0:00:45]} 49. Nc5 {[%clk 0:00:44]}  Bd5 {[%clk 0:00:45]} 50. f4 {[%clk 0:00:44]}  Bf3 {[%clk 0:00:43]} 51. Nd7 {[%clk 0:00:42]}  f5 {[%clk 0:00:42]} 52. Nc5 {[%clk 0:00:31]}  Bd5 {[%clk 0:00:40]} 53. Nd3+ {[%clk 0:00:30]}  Kb5 {[%clk 0:00:40]} 54. Ke5 {[%clk 0:00:30]}  Be4 {[%clk 0:00:38]} 55. Nf2 {[%clk 0:00:30]}  Bc2 {[%clk 0:00:38]} 56. Kd4 {[%clk 0:00:22]}  Kb4 {[%clk 0:00:35]} 57. Ke3 {[%clk 0:00:18]}  c5 {[%clk 0:00:34]} 58. Kd2 {[%clk 0:00:18]}  Kb3 {[%clk 0:00:34]} 59. Kc1 {[%clk 0:00:14]}  c4 {[%clk 0:00:34]} 60. g4 {[%clk 0:00:15]}  fxg4 {[%clk 0:00:33]} 61. Nxg4 {[%clk 0:00:16]}  Be4 {[%clk 0:00:30]} 62. Nf6 {[%clk 0:00:12]}  Bf5 {[%clk 0:00:27]} 63. Nd5 {[%clk 0:00:12]}  c3 {[%clk 0:00:26]} 64. Ne3 {[%clk 0:00:12]}  Be4 {[%clk 0:00:26]} 65. f5 {[%clk 0:00:12]}  Bxf5 {[%clk 0:00:24]} 66. Nxf5 {[%clk 0:00:13]}  c2 {[%clk 0:00:25]} 67. Ne3 {[%clk 0:00:13]}  Kc3 {[%clk 0:00:25]} 68. Nxc2 {[%clk 0:00:14]} 1/2-1/2


[Site "https://www.chess.com"]

[Event "Titled Tuesday Blitz August 22 Early 2023"]
[White "Rietze, Clemens, Dr."]
[Black "Balint, Vilmos"]
[WhiteFideId "24620351"]
[BlackFideId "718050"]
[WhiteElo "2454"]
[BlackElo "2253"]
[Result "1-0"]
[Round "10"]
[TimeControl "180+1"]
[Date "2023.08.22"]
[WhiteClock "0:00:03"]
[BlackClock "0:00:38"]
[Board "122"]

1. d4 {[%clk 0:03:00]}  Nf6 {[%clk 0:02:45]} 2. c4 {[%clk 0:03:00]}  e6 {[%clk 0:02:45]} 3. Nf3 {[%clk 0:03:00]}  Bb4+ {[%clk 0:02:45]} 4. Bd2 {[%clk 0:03:01]}  c5 {[%clk 0:02:44]} 5. Bxb4 {[%clk 0:03:00]}  cxb4 {[%clk 0:02:45]} 6. g3 {[%clk 0:03:00]}  O-O {[%clk 0:02:46]} 7. Bg2 {[%clk 0:03:01]}  d6 {[%clk 0:02:46]} 8. O-O {[%clk 0:03:01]}  Qe7 {[%clk 0:02:47]} 9. Ne1 {[%clk 0:02:51]}  a5 {[%clk 0:02:46]} 10. Nc2 {[%clk 0:02:50]}  Na6 {[%clk 0:02:47]} 11. Nd2 {[%clk 0:02:49]}  Rb8 {[%clk 0:02:46]} 12. a3 {[%clk 0:02:45]}  bxa3 {[%clk 0:02:46]} 13. Rxa3 {[%clk 0:02:44]}  b6 {[%clk 0:02:46]} 14. b3 {[%clk 0:02:38]}  e5 {[%clk 0:02:36]} 15. e4 {[%clk 0:02:26]}  Bg4 {[%clk 0:02:31]} 16. f3 {[%clk 0:02:19]}  Be6 {[%clk 0:02:30]} 17. Nb1 {[%clk 0:01:59]}  Rfc8 {[%clk 0:02:29]} 18. Nc3 {[%clk 0:01:58]}  exd4 {[%clk 0:02:26]} 19. Qxd4 {[%clk 0:01:52]}  Nc5 {[%clk 0:02:25]} 20. Kh1 {[%clk 0:01:47]}  h6 {[%clk 0:02:19]} 21. Rd1 {[%clk 0:01:46]}  Ne8 {[%clk 0:02:19]} 22. Ne3 {[%clk 0:01:44]}  Qg5 {[%clk 0:02:13]} 23. f4 {[%clk 0:01:42]}  Qh5 {[%clk 0:02:12]} 24. f5 {[%clk 0:01:24]}  Bd7 {[%clk 0:02:11]} 25. Ncd5 {[%clk 0:01:25]}  Kf8 {[%clk 0:02:06]} 26. Rf1 {[%clk 0:01:16]}  Qe2 {[%clk 0:02:02]} 27. f6 {[%clk 0:01:10]}  g6 {[%clk 0:02:01]} 28. e5 {[%clk 0:01:08]}  dxe5 {[%clk 0:01:57]} 29. Qxe5 {[%clk 0:01:08]}  Be6 {[%clk 0:01:55]} 30. Nf4 {[%clk 0:01:04]}  Qd2 {[%clk 0:01:21]} 31. b4 {[%clk 0:00:33]}  Qxb4 {[%clk 0:01:15]} 32. Raa1 {[%clk 0:00:30]}  Kg8 {[%clk 0:01:11]} 33. Bd5 {[%clk 0:00:25]}  Nd7 {[%clk 0:01:09]} 34. Qd4 {[%clk 0:00:20]}  Bxd5+ {[%clk 0:00:53]} 35. Nexd5 {[%clk 0:00:18]}  Qc5 {[%clk 0:00:52]} 36. Qd2 {[%clk 0:00:17]}  Kh7 {[%clk 0:00:52]} 37. Rac1 {[%clk 0:00:16]}  Ndxf6 {[%clk 0:00:50]} 38. Nxf6+ {[%clk 0:00:12]}  Nxf6 {[%clk 0:00:51]} 39. Nd3 {[%clk 0:00:12]}  Ne4 {[%clk 0:00:48]} 40. Rxf7+ {[%clk 0:00:11]}  Kg8 {[%clk 0:00:47]} 41. Qf4 {[%clk 0:00:11]}  Ng5 {[%clk 0:00:43]} 42. Rf6 {[%clk 0:00:10]}  Rc6 {[%clk 0:00:42]} 43. Qxb8+ {[%clk 0:00:08]}  Kg7 {[%clk 0:00:42]} 44. Rff1 {[%clk 0:00:03]}  Qe3 {[%clk 0:00:39]} 45. Qb7+ {[%clk 0:00:03]}  Nf7 {[%clk 0:00:38]} 46. Qxf7+ {[%clk 0:00:03]} 1-0


[Site "https://www.chess.com"]

[Event "Titled Tuesday Blitz August 22 Early 2023"]
[White "Feliz Dotel, Dewar Bienvenido"]
[Black "Sai Han Thiha"]
[WhiteFideId "6402801"]
[BlackFideId "13012290"]
[WhiteElo "2165"]
[BlackElo "2448"]
[Result "0-1"]
[Round "10"]
[TimeControl "180+1"]
[Date "2023.08.22"]
[WhiteClock "0:00:30"]
[BlackClock "0:01:31"]
[Board "123"]

1. d4 {[%clk 0:02:58]}  Nf6 {[%clk 0:03:00]} 2. e3 {[%clk 0:02:59]}  e6 {[%clk 0:02:58]} 3. Nf3 {[%clk 0:02:59]}  b6 {[%clk 0:02:58]} 4. Bd3 {[%clk 0:02:56]}  Bb7 {[%clk 0:02:59]} 5. b3 {[%clk 0:02:52]}  c5 {[%clk 0:02:58]} 6. Bb2 {[%clk 0:02:52]}  cxd4 {[%clk 0:02:55]} 7. exd4 {[%clk 0:02:51]}  d5 {[%clk 0:02:55]} 8. O-O {[%clk 0:02:51]}  Bd6 {[%clk 0:02:56]} 9. c4 {[%clk 0:02:48]}  O-O {[%clk 0:02:52]} 10. Nbd2 {[%clk 0:02:47]}  Nc6 {[%clk 0:02:47]} 11. a3 {[%clk 0:02:46]}  Ne7 {[%clk 0:02:46]} 12. b4 {[%clk 0:02:44]}  dxc4 {[%clk 0:02:45]} 13. Nxc4 {[%clk 0:02:44]}  Ng6 {[%clk 0:02:39]} 14. Nxd6 {[%clk 0:02:40]}  Qxd6 {[%clk 0:02:38]} 15. Re1 {[%clk 0:02:28]}  Rac8 {[%clk 0:02:27]} 16. Qe2 {[%clk 0:02:15]}  Nf4 {[%clk 0:02:24]} 17. Qe3 {[%clk 0:02:06]}  Ng4 {[%clk 0:02:18]} 18. Qd2 {[%clk 0:01:39]}  Nxd3 {[%clk 0:01:31]} 19. Qxd3 {[%clk 0:01:28]}  Bxf3 {[%clk 0:01:31]} 20. Qxf3 {[%clk 0:01:29]}  Qxh2+ {[%clk 0:01:31]} 21. Kf1 {[%clk 0:00:30]}  Rc2 {[%clk 0:01:31]} 0-1


[Site "https://www.chess.com"]

[Event "Titled Tuesday Blitz August 22 Early 2023"]
[White "Cagara, Paulina"]
[Black "Balla, Tamas-Kristof"]
[WhiteFideId "1124870"]
[BlackFideId "1208497"]
[WhiteElo "2170"]
[BlackElo "2441"]
[Result "1-0"]
[Round "10"]
[TimeControl "180+1"]
[Date "2023.08.22"]
[WhiteClock "0:01:37"]
[BlackClock "0:00:00"]
[Board "124"]

1. e4 {[%clk 0:03:00]}  c5 {[%clk 0:03:00]} 2. Nc3 {[%clk 0:03:00]}  Nc6 {[%clk 0:03:00]} 3. Bb5 {[%clk 0:02:59]}  Nd4 {[%clk 0:03:00]} 4. Bc4 {[%clk 0:02:58]}  e6 {[%clk 0:03:00]} 5. Nf3 {[%clk 0:02:58]}  a6 {[%clk 0:02:59]} 6. a4 {[%clk 0:02:57]}  Nf6 {[%clk 0:02:45]} 7. O-O {[%clk 0:02:56]}  d5 {[%clk 0:02:44]} 8. exd5 {[%clk 0:02:55]}  exd5 {[%clk 0:02:45]} 9. Nxd5 {[%clk 0:02:45]}  Nxd5 {[%clk 0:02:38]} 10. Nxd4 {[%clk 0:02:45]}  cxd4 {[%clk 0:02:30]} 11. Qh5 {[%clk 0:02:45]}  Be7 {[%clk 0:01:31]} 12. Qxd5 {[%clk 0:02:41]}  O-O {[%clk 0:01:26]} 13. Qxd8 {[%clk 0:02:40]}  Rxd8 {[%clk 0:01:27]} 14. d3 {[%clk 0:02:40]}  Bd7 {[%clk 0:01:14]} 15. Bf4 {[%clk 0:02:38]}  Bc6 {[%clk 0:01:09]} 16. Rfe1 {[%clk 0:02:36]}  Bf6 {[%clk 0:01:09]} 17. Be5 {[%clk 0:02:34]}  Bxe5 {[%clk 0:00:40]} 18. Rxe5 {[%clk 0:02:32]}  Re8 {[%clk 0:00:41]} 19. Rae1 {[%clk 0:02:31]}  Bxa4 {[%clk 0:00:39]} 20. Bd5 {[%clk 0:02:21]}  Rxe5 {[%clk 0:00:31]} 21. Rxe5 {[%clk 0:02:20]}  Bc6 {[%clk 0:00:32]} 22. Bxc6 {[%clk 0:02:17]}  bxc6 {[%clk 0:00:33]} 23. g4 {[%clk 0:02:17]}  Rb8 {[%clk 0:00:12]} 24. b3 {[%clk 0:02:16]}  f6 {[%clk 0:00:09]} 25. Rc5 {[%clk 0:02:15]}  Rb6 {[%clk 0:00:10]} 26. Kg2 {[%clk 0:02:14]}  Kf7 {[%clk 0:00:11]} 27. Kf3 {[%clk 0:02:14]}  Ke6 {[%clk 0:00:11]} 28. Ke4 {[%clk 0:02:14]}  g6 {[%clk 0:00:12]} 29. Kxd4 {[%clk 0:02:14]}  Kd6 {[%clk 0:00:10]} 30. Rc4 {[%clk 0:02:02]}  Rb5 {[%clk 0:00:09]} 31. f4 {[%clk 0:01:58]}  h5 {[%clk 0:00:07]} 32. h3 {[%clk 0:01:57]}  hxg4 {[%clk 0:00:05]} 33. hxg4 {[%clk 0:01:56]}  Rd5+ {[%clk 0:00:05]} 34. Ke4 {[%clk 0:01:56]}  a5 {[%clk 0:00:06]} 35. Rd4 {[%clk 0:01:55]}  f5+ {[%clk 0:00:03]} 36. gxf5 {[%clk 0:01:53]}  gxf5+ {[%clk 0:00:03]} 37. Ke3 {[%clk 0:01:52]}  Kc5 {[%clk 0:00:03]} 38. Rxd5+ {[%clk 0:01:51]}  cxd5 {[%clk 0:00:03]} 39. c3 {[%clk 0:01:51]}  d4+ {[%clk 0:00:01]} 40. Kd2 {[%clk 0:01:47]}  Kd5 {[%clk 0:00:00]} 41. Kc2 {[%clk 0:01:37]} 1-0


[Site "https://www.chess.com"]

[Event "Titled Tuesday Blitz August 22 Early 2023"]
[White "Pein, Jonathan"]
[Black "Dilmukhametov, Artur"]
[WhiteFideId "417092"]
[BlackFideId "24179922"]
[WhiteElo "2414"]
[BlackElo "2193"]
[Result "1-0"]
[Round "10"]
[TimeControl "180+1"]
[Date "2023.08.22"]
[WhiteClock "0:00:07"]
[BlackClock "0:00:07"]
[Board "132"]

1. e4 {[%clk 0:03:00]}  c5 {[%clk 0:02:57]} 2. Nh3 {[%clk 0:02:59]}  Nf6 {[%clk 0:02:48]} 3. Nc3 {[%clk 0:02:51]}  d5 {[%clk 0:02:47]} 4. Ng5 {[%clk 0:02:45]}  h6 {[%clk 0:02:36]} 5. Nxf7 {[%clk 0:02:01]}  Kxf7 {[%clk 0:02:31]} 6. e5 {[%clk 0:02:01]}  d4 {[%clk 0:02:12]} 7. Bc4+ {[%clk 0:01:24]}  e6 {[%clk 0:02:09]} 8. exf6 {[%clk 0:01:08]}  dxc3 {[%clk 0:02:08]} 9. fxg7 {[%clk 0:01:03]}  Bxg7 {[%clk 0:02:09]} 10. Qh5+ {[%clk 0:00:55]}  Kf8 {[%clk 0:01:48]} 11. Qxc5+ {[%clk 0:00:52]}  Kg8 {[%clk 0:01:45]} 12. dxc3 {[%clk 0:00:49]}  Nc6 {[%clk 0:01:30]} 13. O-O {[%clk 0:00:46]}  Qh4 {[%clk 0:01:13]} 14. Be3 {[%clk 0:00:29]}  Qe7 {[%clk 0:00:44]} 15. Qh5 {[%clk 0:00:24]}  Bd7 {[%clk 0:00:42]} 16. Rad1 {[%clk 0:00:19]}  Be8 {[%clk 0:00:41]} 17. Qg4 {[%clk 0:00:15]}  Bf7 {[%clk 0:00:41]} 18. Qg3 {[%clk 0:00:08]}  Kh7 {[%clk 0:00:37]} 19. Bd3+ {[%clk 0:00:08]}  Kg8 {[%clk 0:00:38]} 20. Rfe1 {[%clk 0:00:09]}  Ne5 {[%clk 0:00:34]} 21. Bd4 {[%clk 0:00:09]}  Bh5 {[%clk 0:00:19]} 22. Bxe5 {[%clk 0:00:05]}  Bxd1 {[%clk 0:00:20]} 23. Rxd1 {[%clk 0:00:05]}  Kf8 {[%clk 0:00:19]} 24. Bd6 {[%clk 0:00:05]}  Bf6 {[%clk 0:00:20]} 25. Bxe7+ {[%clk 0:00:04]}  Bxe7 {[%clk 0:00:21]} 26. Re1 {[%clk 0:00:05]}  Rg8 {[%clk 0:00:15]} 27. Qf3+ {[%clk 0:00:06]}  Kg7 {[%clk 0:00:16]} 28. Qxb7 {[%clk 0:00:07]}  Rae8 {[%clk 0:00:15]} 29. Qxa7 {[%clk 0:00:06]}  Kh8 {[%clk 0:00:14]} 30. Qd4+ {[%clk 0:00:07]}  Rg7 {[%clk 0:00:13]} 31. Rxe6 {[%clk 0:00:07]}  Rd8 {[%clk 0:00:14]} 32. Rxh6+ {[%clk 0:00:06]}  Kg8 {[%clk 0:00:07]} 33. Bc4+ {[%clk 0:00:07]} 1-0


[Site "https://www.chess.com"]